bitfinex-derivatives/quotes_BTCF0:USTF0_20210108
["timestamp","ask_amount","ask_price","bid_price","bid_amount"]
[1610120629400,0.11356,40579.0,40560.0,0.0002]
[1610120629700,0.11356,40579.0,40537.0,0.0002]
[1610120629701,1.0,40561.0,40537.0,0.0002]
[1610120629899,1.0,40561.0,40550.0,0.13632608]
[1610120629900,1.11916,40561.0,40550.0,0.13632608]
[1610120630099,1.11916,40561.0,40551.0,0.0002]
[1610120630703,1.51536,40561.0,40551.0,0.0002]
[1610120631102,1.11916,40561.0,40533.0,0.00049252]
[1610120631402,3.0715,40556.0,40533.0,0.00029252]
[1610120631803,0.13612608,40534.0,40533.0,0.00029252]
[1610120632002,0.23613608,40534.0,40512.0,2.40985458]
[1610120632202,0.23613608,40534.0,40529.0,0.0002]
[1610120632503,0.23613608,40534.0,40508.0,2.41806154]
[1610120632703,0.23613608,40534.0,40499.0,2.43209245]
[1610120632906,0.23613608,40534.0,40512.0,0.0002]
[1610120633102,0.23613608,40534.0,40500.0,2.43781545]
[1610120633304,0.23613608,40534.0,40500.0,0.0002]
[1610120633504,0.23613608,40534.0,40501.0,0.00049272]
[1610120633705,0.23613608,40534.0,40501.0,0.0002]
[1610120633904,0.13632608,40502.0,40495.0,0.13632608]
[1610120634207,0.10506,40510.0,40495.0,0.13632608]
[1610120634505,0.10506,40510.0,40496.0,0.0002]
[1610120634805,0.10506,40510.0,40483.0,2.4745311]
[1610120635007,2.8285,40507.0,40477.0,2.47188463]
[1610120635207,2.8285,40507.0,40484.0,0.0002]
[1610120635409,2.8285,40507.0,40462.0,2.47761501]
[1610120635608,2.8285,40507.0,40478.0,0.0002]
[1610120635808,0.13632608,40479.0,40465.0,0.13632608]
[1610120636009,0.13632608,40479.0,40461.0,0.00049129]
[1610120636207,0.26155608,40479.0,40461.0,0.00049129]
[1610120636712,0.12523,40479.0,40459.0,0.00029133]
[1610120636910,0.12523,40479.0,40462.0,0.00049131]
[1610120637110,0.12057,40488.0,40463.0,0.0002]
[1610120637308,0.12057,40488.0,40463.0,0.00049125]
[1610120637510,0.10506,40510.0,40465.0,2.43455034]
[1610120637711,0.10506,40510.0,40465.0,0.10939]
[1610120637912,0.10506,40510.0,40466.0,0.00049125]
[1610120638112,0.10506,40510.0,40467.0,0.0002]
[1610120638711,0.10506,40510.0,40466.0,0.0002]
[1610120639213,4.1018,40532.0,40466.0,0.0002]
[1610120639615,4.1764,40532.0,40466.0,0.0002]
[1610120639813,0.13632608,40483.0,40482.0,0.13632608]
[1610120640014,0.26033608,40483.0,40482.0,0.13632608]
[1610120640216,0.12401,40483.0,40482.0,0.13632608]
[1610120640621,0.12401,40483.0,40478.0,0.0002]
[1610120641116,0.19861,40483.0,40478.0,0.0002]
[1610120641316,0.19861,40483.0,40456.0,0.12811]
[1610120641521,0.19861,40483.0,40457.0,0.0002]
[1610120641717,0.075,40482.0,40451.0,0.11721]
[1610120641917,0.13632608,40476.0,40475.0,0.13632608]
[1610120642116,0.13632608,40476.0,40451.0,0.11721]
[1610120642117,0.13632608,40476.0,40471.0,0.0002]
[1610120642519,0.13632608,40476.0,40452.0,0.0002]
[1610120642718,0.13632608,40476.0,40451.0,0.11721]
[1610120642919,0.13632608,40476.0,40452.0,0.0002]
[1610120643619,0.12401,40483.0,40455.0,3.846]
[1610120644019,0.12401,40483.0,40456.0,0.0002]
[1610120645023,0.13632608,40493.0,40456.0,0.0002]
[1610120645224,0.0744,40492.0,40456.0,0.0002]
[1610120645524,1.0,40484.0,40464.0,1.0]
[1610120645923,0.13632608,40478.0,40465.0,0.0002]
[1610120646124,0.08567,40478.0,40465.0,0.0002]
[1610120646724,1.0,40484.0,40465.0,0.0002]
[1610120646923,1.0,40484.0,40465.0,0.12731]
[1610120647525,0.08285,40501.0,40465.0,0.12711]
[1610120647926,0.08285,40501.0,40495.0,0.13632608]
[1610120648329,0.08285,40501.0,40496.0,0.0002]
[1610120648927,0.2943,40532.0,40497.0,0.5591]
[1610120649134,0.2769,40556.0,40498.0,0.0002]
[1610120649328,0.2769,40556.0,40503.0,3.5339]
[1610120649529,1.1569,40538.0,40517.0,1.0]
[1610120649731,1.1569,40538.0,40517.0,1.509]
[1610120649928,1.1569,40538.0,40537.0,0.13632608]
[1610120650129,1.1569,40538.0,40537.0,4.04202608]
[1610120650831,1.0,40538.0,40537.0,4.04202608]
[1610120651439,0.1569,40555.0,40537.0,4.04202608]
[1610120651632,0.1569,40588.0,40537.0,4.04202608]
[1610120651833,0.60472608,40585.0,40554.0,0.13632608]
[1610120652431,0.67942608,40585.0,40554.0,0.13632608]
[1610120652831,0.4684,40585.0,40554.0,0.22297608]
[1610120653032,0.4684,40585.0,40563.0,3.2492]
[1610120653230,0.4684,40585.0,40563.0,3.35519]
[1610120653435,0.1569,40614.0,40563.0,3.35519]
[1610120653632,0.2791,40614.0,40563.0,3.35519]
[1610120653835,0.4764,40613.0,40563.0,3.35519]
[1610120654034,0.08211,40613.0,40563.0,3.35519]
[1610120654234,0.3195,40612.0,40563.0,3.35519]
[1610120655735,0.08211,40613.0,40563.0,3.35519]
[1610120655938,0.08211,40613.0,40612.0,0.13632608]
[1610120656136,0.08211,40613.0,40598.0,4.072]
[1610120657536,0.08211,40613.0,40612.0,1.0]
[1610120658136,0.15631,40613.0,40612.0,1.0]
[1610120658439,0.08211,40613.0,40612.0,1.0]
[1610120659038,1.4684,40634.0,40612.0,1.0]
[1610120659437,1.4684,40634.0,40585.0,0.11183]
[1610120659438,0.542,40634.0,40585.0,0.11183]
[1610120659638,0.66273,40634.0,40585.0,0.11183]
[1610120659837,0.13632608,40617.0,40598.0,0.13632608]
[1610120660038,0.0727,40616.0,40598.0,0.13632608]
[1610120660241,0.10792,40617.0,40598.0,3.94292608]
[1610120660839,0.10792,40617.0,40598.0,0.13632608]
[1610120661838,0.10792,40617.0,40616.0,0.13632608]
[1610120662441,0.18242,40617.0,40616.0,0.13632608]
[1610120662641,0.10792,40617.0,40616.0,0.13632608]
[1610120663544,0.10792,40617.0,40616.0,1.13632608]
[1610120665242,0.58913,40634.0,40616.0,1.13632608]
[1610120665441,0.58913,40634.0,40616.0,0.13632608]
[1610120665841,0.66263,40634.0,40616.0,0.13632608]
[1610120666042,0.66263,40634.0,40596.0,0.10442]
[1610120666043,0.13632608,40630.0,40627.0,0.13632608]
[1610120666942,0.0737,40629.0,40596.0,0.10442]
[1610120667142,0.13632608,40630.0,40596.0,0.10442]
[1610120667444,0.13632608,40630.0,40628.0,1.0]
[1610120667944,0.58913,40634.0,40629.0,0.13632608]
[1610120669648,0.58913,40634.0,40605.0,0.08435]
[1610120669846,0.58913,40634.0,40596.0,0.10442]
[1610120670045,0.13632608,40629.0,40575.0,3.0648]
[1610120670245,0.1569,40628.0,40575.0,3.0648]
[1610120670845,1.5,40627.0,40575.0,3.0648]
[1610120671145,1.5,40627.0,40547.0,1.0]
[1610120671351,0.2905,40626.0,40547.0,3.8592]
[1610120671648,1.0,40579.0,40559.0,1.0]
[1610120671847,1.09453,40579.0,40559.0,1.0]
[1610120672050,1.09453,40579.0,40566.0,0.13632608]
[1610120672549,1.09453,40579.0,40559.0,1.0]
[1610120673549,1.0,40561.0,40541.0,1.0]
[1610120673748,0.0735,40560.0,40541.0,1.0]
[1610120673950,1.10916,40561.0,40559.0,0.13632608]
[1610120674849,1.10916,40561.0,40541.0,1.0]
[1610120675548,1.10916,40561.0,40488.0,2.75141944]
[1610120675549,0.10916,40561.0,40508.0,3.9378]
[1610120676049,0.10916,40561.0,40534.0,0.13632608]
[1610120677050,1.60916,40561.0,40513.0,0.07938]
[1610120677351,0.0003009,40559.0,40513.0,0.07938]
[1610120677552,1.0,40527.0,40513.0,0.07938]
[1610120677851,1.11403,40527.0,40507.0,1.0]
[1610120678156,1.11403,40527.0,40507.0,1.13632608]
[1610120679551,1.11403,40527.0,40507.0,0.13632608]
[1610120679552,0.11403,40527.0,40507.0,0.13632608]
[1610120680052,0.11403,40527.0,40526.0,0.13632608]
[1610120680953,0.11403,40527.0,40496.0,0.08269]
[1610120681553,0.11403,40527.0,40515.0,1.0]
[1610120681953,0.11403,40527.0,40521.0,0.13632608]
[1610120682356,0.11403,40527.0,40515.0,1.0]
[1610120682755,1.0,40535.0,40515.0,1.0]
[1610120683558,1.5,40554.0,40496.0,0.08269]
[1610120684058,1.5,40554.0,40502.0,0.13632608]
[1610120684059,0.13632608,40507.0,40502.0,0.13632608]
[1610120684457,0.13632608,40507.0,40496.0,0.08269]
[1610120685257,0.08758,40519.0,40470.0,3.7669]
[1610120685457,0.08758,40519.0,40506.0,1.0]
[1610120685958,0.08758,40519.0,40507.0,0.13632608]
[1610120686159,0.08758,40519.0,40506.0,1.0]
[1610120687659,0.08758,40519.0,40490.0,0.10495]
[1610120687860,0.08758,40519.0,40488.0,3.8561]
[1610120688059,0.08758,40519.0,40508.0,0.13632608]
[1610120689661,0.2991,40536.0,40518.0,1.0]
[1610120689861,1.0,40555.0,40518.0,1.0]
[1610120690061,1.0,40555.0,40535.0,0.13632608]
[1610120690464,1.0,40555.0,40518.0,1.0]
[1610120690764,0.27042726,40519.0,40518.0,1.0]
[1610120690962,0.38021726,40519.0,40518.0,1.0]
[1610120691567,0.38021726,40519.0,40488.0,2.7751]
[1610120692167,0.38021726,40519.0,40518.0,0.13632608]
[1610120693668,0.27042726,40519.0,40518.0,6.22541608]
[1610120694271,0.10916,40561.0,40518.0,6.22541608]
[1610120694470,1.0,40569.0,40518.0,6.22541608]
[1610120694870,1.0,40569.0,40527.0,2.8036]
[1610120695073,1.0,40569.0,40527.0,2.91796]
[1610120695470,3.794,40622.0,40527.0,2.91796]
[1610120695771,0.2954,40616.0,40568.0,6.0]
[1610120696172,0.43482608,40615.0,40578.0,0.13632608]
[1610120696671,0.0003007,40598.0,40578.0,0.13632608]
[1610120696872,0.1030907,40598.0,40578.0,0.13632608]
[1610120697071,0.1765907,40598.0,40578.0,0.13632608]
[1610120697271,0.1030907,40598.0,40579.0,0.4323]
[1610120697573,0.0003007,40597.0,40579.0,0.4323]
[1610120697871,0.10279,40598.0,40579.0,0.4323]
[1610120698071,0.10279,40598.0,40584.0,0.13632608]
[1610120698473,0.0728,40597.0,40584.0,0.13632608]
[1610120699073,0.10279,40598.0,40584.0,0.13632608]
[1610120700173,0.17559,40598.0,40597.0,0.13632608]
[1610120700876,0.12073,40634.0,40597.0,0.13632608]
[1610120700877,0.12073,40634.0,40597.0,0.22870608]
[1610120701574,1.0,40630.0,40598.0,1.0]
[1610120702176,0.45582608,40599.0,40598.0,1.0]
[1610120702376,0.3195,40599.0,40598.0,1.0]
[1610120703477,0.3195,40599.0,40589.0,2.96132608]
[1610120704080,0.3195,40599.0,40598.0,0.13632608]
[1610120704881,0.3935,40599.0,40598.0,0.13632608]
[1610120705280,0.3195,40599.0,40598.0,0.13632608]
[1610120706881,0.3195,40599.0,40574.0,3.5356]
[1610120707483,0.3195,40599.0,40588.0,1.0]
[1610120707814,0.3935,40599.0,40588.0,1.0]
[1610120707990,0.3935,40599.0,40588.0,0.8416]
[1610120708182,0.13632608,40589.0,40568.0,0.13632608]
[1610120708386,0.24327608,40589.0,40568.0,0.13632608]
[1610120710186,0.13632608,40569.0,40568.0,0.13632608]
[1610120710387,0.13632608,40569.0,40540.0,3.324]
[1610120710593,0.29831608,40569.0,40551.0,1.0]
[1610120711190,0.22421608,40569.0,40551.0,1.0]
[1610120711589,0.22421608,40569.0,40551.0,0.8884]
[1610120711991,1.0,40552.0,40524.0,1.0]
[1610120712192,1.23892608,40552.0,40524.0,1.0]
[1610120713291,0.0733,40551.0,40524.0,1.0]
[1610120713893,1.0,40524.0,40504.0,1.0]
[1610120714194,1.08918,40524.0,40511.0,0.13632608]
[1610120714799,1.08918,40524.0,40504.0,1.0]
[1610120715396,0.0736,40523.0,40504.0,1.0]
[1610120715895,0.0736,40523.0,40461.0,2.49111456]
[1610120715896,0.0736,40523.0,40490.0,3.3748]
[1610120716196,0.08918,40524.0,40455.0,2.63765071]
[1610120716197,0.13632608,40509.0,40458.0,2.49120431]
[1610120716397,0.08049,40509.0,40458.0,2.49120431]
[1610120716701,0.08049,40509.0,40460.0,2.49022523]
[1610120716900,0.08049,40509.0,40462.0,2.48993436]
[1610120717497,0.08049,40509.0,40461.0,2.4893549]
[1610120717700,0.08049,40509.0,40465.0,2.4893363]
[1610120718102,0.08049,40509.0,40491.0,0.13632608]
[1610120718301,0.08049,40509.0,40478.0,0.08022]
[1610120719901,0.0736,40508.0,40501.0,1.0]
[1610120720100,0.0736,40508.0,40502.0,0.13632608]
[1610120720301,0.08049,40509.0,40502.0,0.13632608]
[1610120720499,0.08049,40509.0,40501.0,1.0]
[1610120720701,0.19780034,40509.0,40501.0,1.0]
[1610120721301,0.0736,40508.0,40501.0,1.0]
[1610120721500,0.19780034,40509.0,40501.0,1.0]
[1610120722003,0.19780034,40509.0,40508.0,6.0]
[1610120722203,0.19780034,40509.0,40508.0,6.13632608]
[1610120723100,0.075,40511.0,40508.0,6.13632608]
[1610120723601,0.2912,40550.0,40508.0,6.13632608]
[1610120724005,0.2912,40550.0,40508.0,0.13632608]
[1610120724204,0.13632608,40540.0,40530.0,0.13632608]
[1610120724803,0.2912,40550.0,40530.0,0.13632608]
[1610120725009,0.2777,40595.0,40530.0,0.13632608]
[1610120725205,0.2777,40595.0,40530.0,0.23414608]
[1610120725403,0.2884,40564.0,40530.0,0.23414608]
[1610120725606,0.2884,40564.0,40530.0,0.68244608]
[1610120725805,0.2884,40564.0,40530.0,0.23414608]
[1610120726005,0.2884,40564.0,40532.0,3.6967]
[1610120726206,0.2884,40564.0,40562.0,0.13632608]
[1610120726404,0.2884,40564.0,40550.0,0.11792]
[1610120727006,0.13632608,40573.0,40550.0,0.11792]
[1610120727509,0.9448,40594.0,40550.0,0.11792]
[1610120728011,0.9448,40594.0,40587.0,1.0]
[1610120728216,0.7879,40594.0,40587.0,1.0]
[1610120728607,0.3195,40594.0,40587.0,1.0]
[1610120729812,0.1366,40594.0,40587.0,1.0]
[1610120730016,0.3195,40650.0,40589.0,3.6943]
[1610120730215,0.3195,40650.0,40633.0,0.13632608]
[1610120730410,0.15720047,40649.0,40607.0,0.1051]
[1610120730607,0.25292047,40649.0,40607.0,0.1051]
[1610120731116,0.25262,40649.0,40607.0,0.1051]
[1610120732010,0.25262,40649.0,40632.0,1.0]
[1610120732209,0.13632608,40633.0,40632.0,1.0]
[1610120732412,0.23461608,40633.0,40632.0,1.0]
[1610120732614,0.09829,40633.0,40632.0,1.0]
[1610120734016,0.09829,40633.0,40619.0,0.13632608]
[1610120734217,0.09829,40633.0,40631.0,0.13632608]
[1610120735018,0.17149,40633.0,40631.0,0.13632608]
[1610120735321,0.09829,40633.0,40631.0,0.13632608]
[1610120736419,0.0745,40632.0,40631.0,0.13632608]
[1610120736619,0.09829,40633.0,40631.0,0.13632608]
[1610120736821,0.09829,40633.0,40603.0,3.4471]
[1610120737125,0.09829,40633.0,40580.0,3.4723]
[1610120737323,0.13632608,40639.0,40580.0,3.4723]
[1610120737620,0.1018,40633.0,40580.0,3.4723]
[1610120737926,0.1018,40633.0,40617.0,5.0]
[1610120738219,0.1018,40633.0,40626.0,0.13632608]
[1610120738619,0.1018,40633.0,40617.0,5.0]
[1610120738820,3.3567,40631.0,40617.0,4.8813]
[1610120739022,3.3567,40631.0,40567.0,3.5006]
[1610120739726,0.00030058,40630.0,40567.0,3.5006]
[1610120739926,0.07460058,40630.0,40567.0,3.5006]
[1610120740121,0.07460058,40630.0,40593.0,0.13632608]
[1610120740322,0.00030058,40629.0,40567.0,3.5006]
[1610120741124,1.0,40588.0,40567.0,3.5006]
[1610120741321,1.09384,40588.0,40567.0,3.5006]
[1610120741523,1.09384,40588.0,40538.0,0.0981]
[1610120742122,0.13632608,40570.0,40568.0,0.13632608]
[1610120742436,0.22629608,40570.0,40538.0,0.0981]
[1610120743225,0.22629608,40570.0,40526.0,3.8664]
[1610120743423,0.0737,40569.0,40526.0,3.8664]
[1610120744124,0.0737,40569.0,40568.0,0.13632608]
[1610120745043,0.0737,40569.0,40526.0,3.8664]
[1610120745250,0.08997,40570.0,40526.0,3.8664]
[1610120745438,0.08997,40570.0,40524.0,0.0842]
[1610120745851,0.08997,40570.0,40501.0,5.31216811]
[1610120746131,0.08997,40570.0,40534.0,0.13632608]
[1610120747441,0.1569,40575.0,40534.0,0.13632608]
[1610120748330,0.1569,40575.0,40552.0,0.13632608]
[1610120748629,0.1569,40575.0,40531.0,2.8739]
[1610120748828,0.23757,40575.0,40531.0,2.8739]
[1610120750129,0.0733,40574.0,40531.0,2.8739]
[1610120750832,0.23757,40575.0,40532.0,1.5]
[1610120751033,0.23757,40575.0,40532.0,1.5967]
[1610120751333,0.23757,40575.0,40553.0,3.1637]
[1610120751532,0.08067,40575.0,40553.0,3.27338]
[1610120751733,0.1569,40626.0,40553.0,3.27338]
[1610120752332,0.13632608,40611.0,40598.0,0.13632608]
[1610120754236,0.3455,40599.0,40598.0,0.13632608]
[1610120754738,0.2727,40599.0,40598.0,0.13632608]
[1610120755838,0.3458,40599.0,40598.0,0.13632608]
[1610120756138,0.2727,40599.0,40598.0,0.13632608]
[1610120757438,0.3455,40599.0,40598.0,0.13632608]
[1610120757742,0.2727,40599.0,40598.0,0.58952608]
[1610120758740,0.2727,40599.0,40598.0,0.69565608]
[1610120761540,0.3464,40599.0,40598.0,0.69565608]
[1610120762040,0.3464,40599.0,40598.0,0.13632608]
[1610120762245,0.2727,40599.0,40598.0,0.13632608]
[1610120764843,0.3463,40599.0,40598.0,0.13632608]
[1610120766243,0.2727,40599.0,40598.0,0.13632608]
[1610120768549,0.3455,40599.0,40598.0,0.13632608]
[1610120769247,0.3455,40599.0,40598.0,0.25621608]
[1610120769448,0.2727,40599.0,40598.0,0.25621608]
[1610120769748,0.1569,40649.0,40598.0,0.25621608]
[1610120770449,0.07510034,40648.0,40644.0,0.13632608]
[1610120770749,0.12034034,40648.0,40644.0,0.13632608]
[1610120771050,0.12034034,40648.0,40624.0,3.1742]
[1610120771248,0.00030034,40647.0,40598.0,0.11989]
[1610120771451,0.3195,40646.0,40588.0,0.10627]
[1610120771650,0.3195,40646.0,40579.0,0.12409]
[1610120771852,0.3195,40646.0,40569.0,3.77078]
[1610120772053,0.28410043,40645.0,40569.0,3.77078]
[1610120772251,0.29816657,40645.0,40627.0,0.13632608]
[1610120772550,0.0737,40643.0,40627.0,0.13632608]
[1610120772852,0.01436697,40644.0,40569.0,0.08108]
[1610120773150,0.01436688,40642.0,40569.0,0.09308]
[1610120773350,0.2781,40645.0,40569.0,0.09308]
[1610120773351,0.01436703,40643.0,40569.0,0.09308]
[1610120773553,0.00030044,40641.0,40569.0,0.09308]
[1610120773752,0.01436664,40642.0,40569.0,0.09308]
[1610120774152,0.00030044,40640.0,40569.0,0.09308]
[1610120774352,0.2781,40645.0,40569.0,0.09308]
[1610120774353,0.00030044,40641.0,40625.0,0.13632608]
[1610120774652,0.2781,40645.0,40625.0,0.13632608]
[1610120774653,0.00030044,40639.0,40625.0,0.13632608]
[1610120774853,0.10561,40639.0,40625.0,0.13632608]
[1610120775053,0.00030044,40638.0,40625.0,0.13632608]
[1610120776256,0.00030044,40638.0,40636.0,0.13632608]
[1610120777062,0.0741,40637.0,40636.0,0.13632608]
[1610120777271,0.00030044,40638.0,40636.0,0.13632608]
[1610120777461,0.00030038,40637.0,40636.0,0.13632608]
[1610120777867,0.10561,40639.0,40636.0,0.13632608]
[1610120779461,0.0748,40638.0,40636.0,0.13632608]
[1610120779961,0.10561,40639.0,40636.0,0.13632608]
[1610120780765,0.3195,40646.0,40636.0,0.13632608]
[1610120781167,0.0727,40645.0,40636.0,0.13632608]
[1610120781666,0.3195,40646.0,40636.0,0.13632608]
[1610120782365,0.13632608,40665.0,40645.0,0.13632608]
[1610120783166,0.13632608,40665.0,40616.0,2.9492]
[1610120783366,0.074,40649.0,40616.0,2.9492]
[1610120783565,0.4075,40650.0,40617.0,0.00029392]
[1610120784469,0.4075,40650.0,40649.0,0.13632608]
[1610120787272,0.4811,40650.0,40649.0,0.13632608]
[1610120788374,0.4075,40650.0,40616.0,2.9492]
[1610120788774,0.4075,40650.0,40617.0,0.00029392]
[1610120789075,0.4075,40650.0,40649.0,0.13632608]
[1610120789574,0.481,40650.0,40649.0,0.13632608]
[1610120790174,0.4075,40650.0,40649.0,0.13632608]
[1610120790375,0.4078003,40650.0,40649.0,0.13632608]
[1610120790977,0.4078003,40650.0,40613.0,0.11565]
[1610120791278,0.00030032,40649.0,40614.0,0.00029398]
[1610120791480,0.00030032,40649.0,40648.0,0.13632608]
[1610120791680,0.088,40650.0,40648.0,0.13632608]
[1610120791880,1.0,40664.0,40648.0,0.13632608]
[1610120792480,0.0728,40651.0,40648.0,0.13632608]
[1610120792779,0.19004,40651.0,40648.0,0.13632608]
[1610120793683,0.11724,40651.0,40648.0,0.13632608]
[1610120793880,0.00030029,40650.0,40648.0,0.13632608]
[1610120794382,0.11724,40651.0,40648.0,0.13632608]
[1610120795383,0.11724,40651.0,40616.0,3.376]
[1610120795585,0.11724,40651.0,40617.0,0.00029395]
[1610120795983,0.11724,40651.0,40650.0,0.13632608]
[1610120796384,0.11754028,40651.0,40650.0,0.13632608]
[1610120798286,0.11724,40651.0,40650.0,0.13632608]
[1610120798585,0.13632608,40671.0,40650.0,0.13632608]
[1610120799985,0.295,40673.0,40637.0,3.4878]
[1610120800184,0.23938,40652.0,40637.0,3.4878]
[1610120800484,0.23938,40652.0,40651.0,0.13632608]
[1610120800685,0.08248,40652.0,40651.0,0.13632608]
[1610120800985,0.15588,40652.0,40651.0,0.13632608]
[1610120801185,0.08248,40652.0,40651.0,0.59312608]
[1610120801386,0.08248,40652.0,40651.0,0.59341988]
[1610120801586,0.1569,40672.0,40651.0,0.59341988]
[1610120802087,0.0741,40678.0,40652.0,0.00029378]
[1610120802486,0.0741,40678.0,40677.0,0.13632608]
[1610120802788,0.1569,40682.0,40677.0,0.13632608]
[1610120802987,0.0003001,40681.0,40677.0,0.13632608]
[1610120803388,0.0847801,40681.0,40677.0,0.13632608]
[1610120803587,0.08448,40681.0,40677.0,0.13632608]
[1610120804188,0.0734,40680.0,40677.0,0.13632608]
[1610120804490,0.08448,40681.0,40677.0,0.55532608]
[1610120804890,0.0741,40680.0,40677.0,0.55532608]
[1610120805088,0.08448,40681.0,40677.0,0.55532608]
[1610120807392,0.08448,40681.0,40677.0,0.21457679]
[1610120807595,0.00030006,40680.0,40677.0,0.21457679]
[1610120809595,0.08448,40681.0,40677.0,0.21457679]
[1610120809792,0.3195,40688.0,40677.0,0.21457679]
[1610120810194,0.00030004,40687.0,40677.0,0.21457679]
[1610120810496,0.07713,40687.0,40686.0,0.13632608]
[1610120812595,0.07713,40687.0,40677.0,0.21457679]
[1610120812997,0.07713,40687.0,40686.0,0.13632608]
[1610120814599,0.15043,40687.0,40686.0,0.13632608]
[1610120815099,0.15043,40687.0,40683.0,3.5854]
[1610120815500,0.07713,40687.0,40686.0,0.13632608]
[1610120815802,0.1569,40701.0,40686.0,0.13632608]
[1610120816201,0.13632608,40708.0,40686.0,0.13632608]
[1610120816400,0.2801,40727.0,40686.0,0.13632608]
[1610120817002,0.00029993,40726.0,40686.0,0.13632608]
[1610120817207,0.07758993,40726.0,40686.0,0.13632608]
[1610120817503,0.00029995,40725.0,40700.0,3.5878]
[1610120817705,0.00029995,40725.0,40724.0,0.13632608]
[1610120818004,0.07429995,40725.0,40700.0,3.5878]
[1610120818304,0.00029995,40725.0,40700.0,3.5878]
[1610120818603,0.07729,40726.0,40700.0,3.5878]
[1610120819102,0.07729,40726.0,40669.0,0.08961]
[1610120819103,0.07729,40726.0,40701.0,1.5]
[1610120819304,0.01936721,40746.0,40725.0,2.8202]
[1610120819606,0.01936721,40746.0,40745.0,0.13632608]
[1610120820503,0.1569,40771.0,40763.0,2.797]
[1610120820804,0.00029955,40770.0,40763.0,1.8692]
[1610120821007,0.09474955,40770.0,40763.0,1.8692]
[1610120821205,0.09445,40770.0,40763.0,1.8692]
[1610120821405,0.09445,40770.0,40746.0,1.5]
[1610120821603,0.09445,40770.0,40769.0,2.94732608]
[1610120823403,0.01936721,40806.0,40769.0,1.63632608]
[1610120823604,0.01936721,40806.0,40805.0,0.13632608]
[1610120826710,0.01936721,40806.0,40745.0,0.12142]
[1610120826711,0.01936721,40806.0,40799.0,2.9819]
[1610120827610,0.01936721,40806.0,40805.0,0.13632608]
[1610120828309,0.01936721,40806.0,40746.0,1.5]
[1610120828509,0.01936721,40806.0,40778.0,3.9597]
[1610120828911,0.0727,40805.0,40778.0,3.9597]
[1610120829511,0.19571,40805.0,40778.0,3.9597]
[1610120829712,0.19571,40805.0,40804.0,0.13632608]
[1610120830315,0.19571,40805.0,40778.0,3.9597]
[1610120830515,0.0731,40804.0,40778.0,3.9597]
[1610120830716,0.12301,40805.0,40778.0,3.9597]
[1610120831619,0.12301,40805.0,40804.0,0.13632608]
[1610120831819,0.12301,40805.0,40804.0,0.71112608]
[1610120832822,0.19681,40805.0,40804.0,0.71112608]
[1610120833422,0.12301,40805.0,40804.0,0.71112608]
[1610120834624,0.36768976,40806.0,40804.0,0.71112608]
[1610120835624,0.0732,40805.0,40804.0,0.71112608]
[1610120835824,0.10948,40805.0,40804.0,0.71112608]
[1610120840828,0.36768976,40806.0,40804.0,0.71112608]
[1610120845535,0.36768976,40806.0,40804.0,0.13632608]
[1610120846036,0.36768976,40806.0,40788.0,3.6891]
[1610120847037,0.36768976,40806.0,40746.0,1.5]
[1610120847237,0.48458976,40806.0,40780.0,2.8683]
[1610120847638,0.48458976,40806.0,40805.0,0.13632608]
[1610120847841,0.48458976,40806.0,40805.0,4.02682608]
[1610120848838,0.48458976,40806.0,40805.0,0.13632608]
[1610120850642,0.48458976,40806.0,40781.0,3.6387]
[1610120851744,0.48458976,40806.0,40805.0,0.13632608]
[1610120854444,0.48458976,40806.0,40790.0,2.9083]
[1610120855746,0.48458976,40806.0,40805.0,0.13632608]
[1610120855945,0.48458976,40806.0,40790.0,2.9083]
[1610120857745,0.13632608,40804.0,40801.0,0.13632608]
[1610120858347,0.13632608,40804.0,40790.0,2.9083]
[1610120859048,0.13632608,40804.0,40761.0,3.0213]
[1610120859249,0.13632608,40804.0,40739.0,0.12747]
[1610120859449,0.279,40803.0,40740.0,0.00029316]
[1610120859851,0.13632608,40774.0,40765.0,0.13632608]
[1610120860051,0.22371608,40774.0,40735.0,2.9135]
[1610120860256,0.22371608,40774.0,40694.0,2.23952939]
[1610120860453,0.22371608,40774.0,40692.0,2.24468768]
[1610120860752,0.22371608,40774.0,40701.0,2.9241]
[1610120860953,0.22371608,40774.0,40702.0,1.5]
[1610120861453,0.22371608,40774.0,40703.0,0.00029333]
[1610120861652,0.08739,40774.0,40703.0,0.00029333]
[1610120861851,0.08739,40774.0,40765.0,0.13632608]
[1610120862554,0.08739,40774.0,40727.0,0.09168]
[1610120863158,1.0,40769.0,40701.0,3.82864]
[1610120863560,1.0,40769.0,40702.0,0.00029336]
[1610120863758,0.13632608,40765.0,40744.0,0.13632608]
[1610120863958,0.24499608,40765.0,40744.0,0.13632608]
[1610120864960,0.24499608,40765.0,40726.0,3.0745]
[1610120865362,0.0731,40764.0,40726.0,3.0745]
[1610120865562,0.24499608,40765.0,40726.0,3.0745]
[1610120865861,0.24499608,40765.0,40703.0,3.4787]
[1610120865862,0.13632608,40739.0,40703.0,3.4787]
[1610120866164,0.08328,40739.0,40703.0,3.4787]
[1610120867764,0.13632608,40731.0,40728.0,0.13632608]
[1610120868363,0.08328,40739.0,40728.0,0.13632608]
[1610120868774,0.08328,40739.0,40729.0,3.7102]
[1610120869369,0.0743,40751.0,40729.0,3.7102]
[1610120869865,0.0745,40756.0,40714.0,0.1124]
[1610120870065,0.13632608,40759.0,40714.0,0.1124]
[1610120870983,3.8748,40796.0,40714.0,0.1124]
[1610120871166,0.2759,40805.0,40714.0,0.1124]
[1610120871167,1.0,40803.0,40714.0,0.1124]
[1610120871370,1.0,40803.0,40730.0,3.6296]
[1610120871767,0.275,40802.0,40769.0,0.13632608]
[1610120871967,0.28666536,40802.0,40723.0,0.07728]
[1610120872167,0.275,40802.0,40723.0,0.07728]
[1610120872467,0.275,40802.0,40743.0,3.8715]
[1610120873570,0.0735,40801.0,40743.0,3.8715]
[1610120873770,0.0735,40801.0,40777.0,0.13632608]